{"text_format":"1","workbook":"xlsx","n_sheets":6,"sheets":["додаток 2","Аркуш1","додаток 3","Форма № 4-якість","Holidays","Data"],"not_rendered":{"charts":0,"images":1,"macros":1,"external_links":0,"defined_names":29,"comments":2,"pivot_tables":0},"unopened":[],"bounds":{"document_bytes":16777216,"sheet_cells":100000,"rows_first":2000,"rows_last":500,"rows_between":2000,"halvings":0,"cell_chars":16384,"cell_head_chars":4096},"cells_cut":0,"cells_raw":0,"read":"whole","date_system":"1900"}

{"sheet":"додаток 2","index":0,"n_rows":14,"n_cols":60,"rows_kept":14,"cut":false,"hidden":false,"merged":[[8,19,10,19],[8,14,9,15],[8,16,9,17],[8,10,10,10],[8,12,10,12],[12,2,12,9],[1,5,1,6],[6,2,6,7],[6,8,6,9],[7,11,7,12],[7,8,7,9],[0,18,0,19],[0,15,0,17],[1,16,1,17],[6,11,6,12],[1,14,1,15],[9,21,10,21],[8,2,10,2],[8,5,10,5],[8,11,10,11],[8,3,10,3],[8,4,10,4],[8,6,9,9],[8,13,10,13],[8,20,11,20],[8,18,10,18]]}
[null,null,null,null,null,null,null,null,null,null,null,null,null,null,null,null,null,null,"Дата оновлення:",null,"2023-02-09"]
[null,null,null,null,null,"Виконавець",null,"ДАЦЕНКО Наталія Володимирівна",null,null,"тел.",80688160686,null,null,"Електронна пошта",null,"office@energy-trend.com.ua"]
[]
[]
[]
[]
[null,null,"Реєстр надання послуг та письмових звернень споживачів",null,null,null,null,null,null,null,null,"ТОВ \"ЕНЕРДЖІТРЕНД\"",null,null,null,null,null,"за","1 квартал",2023,"року",null,null,null,null,null,null,null,null,null,null,null,null,null,null,null,null,null,null,null,null,null,null,null,null,null,null,null,null,null,null,null,null,null,null,null,null,null,null,"x"]
[null,null,null,null,null,null,null,null,null,null,null,"(назва ліцензіата)",null,null,null,null,null,null,"(квартал)"]
[null,null,"№ з/п","Код послуги","Структурний підрозділ ліцензіата","Код джерела інформації","Інформація про споживача",null,null,null,"Предмет звернення (лише для звернень споживачів)\n\nC - скарга,\n\nП - пропозиція (зауваження),\n\nЗ - заява (клопотання)","Дата\nпочатку надання послуги\n\nдд.мм.рррр\n","Дата\nзавершення надання послуги \n\nдд.мм.рррр\n",null,"Тривалість обґрунтованої затримки виконання послуги ",null,"Тривалість надання послуги (з вирахуванням часу затримки)",null,"Причина затримки\n\nВС - вина споживача або третіх осіб,\n\nФМ - форс-мажор","Примітки","Виявлені помилки"]
[]
[null,null,null,null,null,null,"прізвище, ім’я, по батькові (найменування)","Адреса","інша інформація","тип споживача (побутовий/\nнепобутовий)",null,null,null,null,"кал. днів","роб. днів","кал. днів","роб. днів"]
[null,null,1,2,3,4,5,6,7,8,9,10,11,null,12,13,14,15,16,17]
[null,null,{"$f":"\"Всього: \"&COUNTA($D$15:$D$65536)&\" послуг (звернень)\"","v":"Всього: 0 послуг (звернень)"},null,null,null,null,null,null,null,null,null,null,null,{"$f":"SUM($O$15:$O$65536)","v":0},{"$f":"SUM($P$15:$P$65536)","v":0},{"$f":"SUM($Q$15:$Q$65536)","v":0},{"$f":"SUM($R$15:$R$65536)","v":0}]
[null,null,"Num","Skod","Div","Source","CName","Adr","Other","Type","Top","T1","T2","Tconn","Zk","Zr","Dk","Dr","ReasZ","Comm","Error","Zatr"]

{"sheet":"Аркуш1","index":1,"n_rows":4,"n_cols":3,"rows_kept":4,"cut":false,"hidden":true,"merged":[]}
[]
[]
[]
[null,null,"Увімкніть макроси"]

{"sheet":"додаток 3","index":2,"n_rows":14,"n_cols":64,"rows_kept":14,"cut":false,"hidden":false,"merged":[[8,13,11,13],[0,11,0,12],[1,10,1,11],[6,5,6,6],[6,7,6,8],[7,5,7,6],[7,7,7,8],[8,12,10,12],[8,10,10,10],[8,11,10,11],[8,2,10,2],[8,3,9,6],[8,7,10,7],[8,8,10,8],[12,2,12,6],[8,9,10,9]]}
[null,null,null,null,null,null,null,null,null,null,null,"Дата оновлення:",null,"2023-02-09"]
[null,null,null,"Виконавець","ДАЦЕНКО Наталія Володимирівна",null,"тел.",80688160686,null,"Електронна пошта","office@energy-trend.com.ua"]
[]
[]
[]
[]
[null,null,null,"Реєстр надання компенсацій споживачам",null,null,null,"ТОВ \"ЕНЕРДЖІТРЕНД\"",null,"за","1 квартал",2023,"року",null,null,null,null,null,null,null,null,null,null,null,null,null,null,null,null,null,null,null,null,null,null,null,null,null,null,null,null,null,null,null,"x"]
[null,null,null,null,null,null,null,"(назва ліцензіата)",null,null,"(квартал)"]
[null,null,"№ з/п","Інформація про споживача (замовника)",null,null,null,"Дата\n надання компенсації\n\nдд.мм.рррр\n","Дата\nнедотримання мінімального стандарту якості \n\nдд.мм.рррр\n","Мінімальний стандарт, за недотримання якого надається компенсація (підпункт/абзац пункту 2.2 глави 2 Стандартів та вимог)","Розмір наданої компенсації, грн","Спосіб надання компенсації","Примітки","Виявлені помилки"]
[]
[null,null,null,"Прізвище, ім’я, по батькові (найменування)","Адреса об'єкта споживача","Інша інформація","Тип споживача (побутовий/\nнепобутовий)"]
[null,null,1,5,6,7,8,10,11,12,13,14,15,null,null,null,null,null,null,null,null,null,null,null,null,null,null,null,null,null,null,null,null,null,null,null,null,null,null,null,null,null,null,null,null,null,null,null,null,null,null,null,null,null,null,null,null,null,null,null,null,null,null," "]
[null,null,{"$f":"\"Всього: \"&COUNTA($K$15:$K$65536)&\" випадків надання компенсації\"","v":"Всього: 0 випадків надання компенсації"},null,null,null,null,null,null,null,{"$f":"SUM($K$15:$K$65536)","v":0},null,null,null,{"$f":"IF(N13=\"\",IF(AND(H13-I13>45,H13-I13<=90),\"двократний розмір\",IF(H13-I13>45,\"пятикратний розмір\",\"\")),\"\")","v":""}]
[null,null,"Num","CName","Adr","Other","Type","Tcomp","Tnon","St","Am","Way","Comm","Error"]

{"sheet":"Форма № 4-якість","index":3,"n_rows":67,"n_cols":15,"rows_kept":67,"cut":false,"hidden":false,"merged":[[66,3,66,4],[60,2,60,5],[60,6,60,9],[61,6,61,9],[65,8,65,9],[51,2,51,6],[52,2,52,6],[63,2,63,5],[56,2,56,6],[64,6,64,9],[63,6,63,9],[44,2,44,6],[45,2,45,6],[46,2,46,6],[47,2,47,6],[48,2,48,6],[49,2,49,6],[35,2,35,7],[36,2,36,7],[40,2,40,7],[50,2,50,7],[53,1,53,7],[58,2,58,13],[38,1,38,13],[41,2,41,6],[42,2,42,6],[43,2,43,6],[29,2,29,7],[30,2,30,7],[31,2,31,7],[32,2,32,7],[33,2,33,7],[34,2,34,7],[23,1,23,13],[24,2,24,7],[25,2,25,7],[26,2,26,7],[27,2,27,7],[28,2,28,7],[18,1,18,4],[18,5,18,13],[19,1,19,4],[19,5,19,13],[20,5,20,13],[22,1,22,13],[15,1,15,4],[15,5,15,13],[16,1,16,4],[16,5,16,13],[17,1,17,4],[17,5,17,13],[9,1,9,9],[9,10,9,13],[10,1,10,9],[10,10,12,13],[11,1,12,9],[14,1,14,4],[0,10,0,13],[1,10,1,13],[2,10,2,13],[3,10,3,13],[5,1,5,13],[6,1,6,13]]}
[null,null,null,null,null,null,null,null,null,null,"Форма № 4-НКРЕКП-газ-якість-постачання (квартальна)"]
[null,null,null,null,null,null,null,null,null,null,"ЗАТВЕРДЖЕНО"]
[null,null,null,null,null,null,null,null,null,null,"Постанова Національної комісії, що здійснює державне регулювання у сферах енергетики та комунальних послуг"]
[null,null,null,null,null,null,null,null,null,null,"10.11.2022 № 1416"]
[]
[null," ЗВІТНІСТЬ"]
[null,"Звіт щодо показників комерційної якості надання послуг з постачання природного газу та надання компенсацій споживачам"]
[null,null,null,null,null,"за","І","квартал","2023","року",null,null,null,null,{"$f":"IF(G8=\"\",\"Не вказано квартал\",\"\")","v":""}]
[null,null,null,null,null,null,null,null,null,null,null,null,null,null,{"$f":"IF(I8=\"\",\"Не вказано рік\",\"\")","v":""}]
[null,"Подають",null,null,null,null,null,null,null,null,"Строк надання"]
[null,"Суб'єкти господарювання, що мають ліцензію на провадження господарської діяльності з постачання природного газу, –",null,null,null,null,null,null,null,null,"До 30 числа місяця, наступного за звітним періодом"]
[null,"Національній комісії, що здійснює державне регулювання у сферах енергетики та комунальних послуг"]
[]
[]
[null,"Респондент:"]
[null,"Найменування суб'єкта господарювання:",null,null,null,"Товариство з обмеженою відповідальністю \"ЕНЕРДЖІТРЕНД\"",null,null,null,null,null,null,null,null,{"$f":"IF(F16=\"\",\"Не вказано найменування ліцензіата\",\"\")","v":""}]
[null,"Офіційний вебсайт:",null,null,null,"office@energy-trend.com.ua",null,null,null,null,null,null,null,null,{"$f":"IF(F17=\"\",\"Не вказано вебсайт\",\"\")","v":""}]
[null,"Код ЄДРПОУ:",null,null,null,"35070925",null,null,null,null,null,null,null,null,{"$f":"IF(F18=\"\",\"Не вказано код ЄДРПОУ\",\"\")","v":""}]
[null,"Енергетичний ідентифікаційний код (EIC) учасника ринку:",null,null,null,"56X930000120630E",null,null,null,null,null,null,null,null,{"$f":"IF(F19=\"\",\"Не вказано ЕІС код\",\"\")","v":""}]
[null,"Місцезнаходження:",null,null,null,"39600, Полтавська обл., м. Кременчук, вул. Перемоги, буд.4, кімната 5",null,null,null,null,null,null,null,null,{"$f":"IF(F20=\"\",\"Не вказано місцезнаходження ліцензіата\",\"\")","v":""}]
[null,null,null,null,null,"(поштовий індекс, область/Автономна Республіка Крим, район, населений пункт, вулиця/провулок, площа тощо, № будинку/корпусу, № офісу)",null,null,null,null,null,null,null,null,{"$f":"IF(G61=\"\",\"Не вказано керівника ліцензіата\",\"\")","v":""}]
[null,null,null,null,null,null,null,null,null,null,null,null,null,null,{"$f":"IF(G64=\"\",\"Не вказано виконавця\",\"\")","v":""}]
[null,"Розділ І. Інформація щодо показників комерційної якості надання послуг з постачання природного газу",null,null,null,null,null,null,null,null,null,null,null,null,{"$f":"IF(D67=\"\",\"Не вказано телефон\",\"\")","v":""}]
[null,null,null,null,null,null,null,null,null,null,null,null,null,null,{"$f":"IF(K67=\"\",\"Не вказано електронну пошту\",\"\")","v":""}]
[null,"Код послуги","Причини звернення відповідно до переліку",null,null,null,null,null,"Код рядка","Загальна кількість за квартал, шт.","Строк виконання послуги відповідно до законодавства","Середній фактичний строк виконання послуги","Кількість послуг (фактичний строк виконання яких був більший ніж зазначено у графі 2), шт.","Відсоток послуг, наданих з перевищенням   установленого строку виконання, %"]
[null,"А","Б",null,null,null,null,null,"В",1,2,3,4,5]
[null,"S1","Надання письмової форми договору постачання природного газу, підписаного уповноваженою особою постачальника, на вимогу побутового споживача (п. 2 розділу ІІІ*)",null,null,null,null,null,"005",null,"10 роб. днів",null,null,{"$f":"IF(J27=0,0,M27/J27)","v":0}]
[null,"S2","Надання повідомлення про намір змінити умови договору постачання природного газу для непобутових споживачів (п. 5 розділу ІІ*)",null,null,null,null,null,"010",null,"не пізніше ніж за 30 днів до дати змін",null,null,0]
[null,"S3","Повернення переплати вартості природного газу на поточний рахунок побутового споживача, у тому числі повернення переплати попередніми постачальниками (п. 24 розділу ІІІ*)",null,null,null,null,null,"015",null,"5 роб. днів",null,null,0]
[null,"S4","Надання повідомлення побутовому споживачу про коригування персоніфікованих даних споживача, що зазначені у договорі постачання природного газу (п. 10 розділу ІІІ*)",null,null,null,null,null,"020",null,"10 роб. днів",null,null,0]
[null,"S5","Надання на вимогу побутового споживача даних, які підтверджують згоду споживача змінити умови постачання за договором постачання природного газу шляхом обрання іншої комерційної пропозиції постачальника (п. 10 розділу ІІІ*)",null,null,null,null,null,"025",null,"15 днів",null,null,0]
[null,"S6","Надання повідомлення побутовому споживачу про відмову в наданні іншої комерційної пропозиції (п. 10 розділу ІІІ*)",null,null,null,null,null,"030",null,"10 роб. днів",null,null,0]
[null,"S7","Усунення порушення або надання обґрунтованої відмови побутовому споживачу у випадку отримання постачальником претензії від побутового споживача (п. 28 розділу ІІІ*)",null,null,null,null,null,"035",null,"5 роб. днів",null,null,0]
[null,"S8","Розгляд акта-претензії споживача про відшкодування збитків (пп. 5, 8 розділу VI*)",null,null,null,null,null,"040",null,"20 роб. днів",null,null,0]
[null,"S9","Розгляд письмового звернення споживача (у тому числі електронного звернення побутового споживача) (стаття 20**, пп. 9 п. 3.2 гл. 3***), зокрема:",null,null,null,null,null,"045",{"$f":"SUM(J36:J37)","v":0},null,{"$f":"IF(SUM(J36:J37)=0,0,SUMPRODUCT(L36:L37,J36:J37)/SUM(J36:J37))","v":0},{"$f":"SUM(M36:M37)","v":0},0]
[null,"S9.1","    окрім звернень щодо правильності рахунка/нарахувань за спожитий природний газ",null,null,null,null,null,"050",null,"30 днів",null,null,0]
[null,"S9.2","    для звернень щодо правильності рахунка/нарахувань за спожитий природний газ",null,null,null,null,null,"055",null,"5 роб. днів",null,null,0]
[]
[null,"Розділ ІІ. Інформація щодо дотримання мінімальних стандартів якості послуг постачання природного газу та сум наданих компенсацій споживачам"]
[]
[null,"Підпункт пункту 3.2 глави 3 Стандартів та вимог***","Мінімальний стандарт якості послуг постачання природного газу",null,null,null,null,null,"Код рядка","Сума компенсацій, надана споживачам, грн ","Кількість випадків надання компенсації споживачам (замовникам)"]
[null,"А","Б",null,null,null,null,"В","Г",1,2]
[null,"Пп. 1","Надання письмової форми договору постачання природного газу, підписаного уповноваженою особою постачальника, на вимогу побутового споживача",null,null,null,null,"10 роб. днів","060"]
[null,"Пп. 2","Надання повідомлення про намір змінити умови договору постачання природного газу для непобутових споживачів",null,null,null,null,"не пізніше ніж за 30 днів до дати змін","065"]
[null,"Пп. 3","Повернення переплати вартості природного газу на поточний рахунок побутового споживача, у тому числі повернення переплати попередніми постачальниками",null,null,null,null,"5 роб. днів","070"]
[null,"Пп. 4","Надання повідомлення побутовому споживачу про коригування персоніфікованих даних споживача, що зазначені у договорі постачання природного газу",null,null,null,null,"10 роб. днів","075"]
[null,"Пп. 5","Надання на вимогу побутового споживача даних, які підтверджують згоду споживача змінити умови постачання за договором постачання природного газу шляхом обрання іншої комерційної пропозиції постачальника",null,null,null,null,"15 днів","080"]
[null,"Пп. 6","Надання повідомлення побутовому споживачу про відмову в наданні іншої комерційної пропозиції",null,null,null,null,"10 роб. днів","085"]
[null,"Пп. 7","Усунення порушення або надання обґрунтованої відмови побутовому споживачу у випадку отримання постачальником претензії від побутового споживача про порушення постачальником умов Правил постачання природного газу та договору постачання природного газу",null,null,null,null,"5 роб. днів","090"]
[null,"Пп. 8","Розгляд акта-претензії споживача про відшкодування збитків",null,null,null,null,"20 роб. днів","095"]
[null,"Пп. 9","Розгляд письмового звернення споживача (у тому числі електронного звернення побутового споживача)",null,null,null,null,null,"100",{"$f":"SUM(J52:J53)","v":0},{"$f":"SUM(K52:K53)","v":0}]
[null,"Пп. 9 абз. 2","окрім звернень щодо правильності рахунка/нарахувань за спожитий природний газ",null,null,null,null,"30 днів","105"]
[null,"Пп. 9 абз. 3","для звернень щодо правильності рахунка/нарахувань за спожитий природний газ",null,null,null,null,"5 роб. днів","110"]
[null,"Разом",null,null,null,null,null,null,"115",{"$f":"SUM(J43:J51)","v":0},{"$f":"SUM(K43:K51)","v":0}]
[]
[null,null,"* Правила постачання природного газу, затверджені постановою НКРЕКП від 30 вересня 2015 року № 2496, зареєстровані у Міністерстві юстиції України "]
[null,null,"06 листопада 2015 року за № 1382/27827. "]
[null,null,"** Закон України «Про звернення громадян»."]
[null,null,"*** Мінімальні стандарти та вимоги до якості обслуговування споживачів природного газу та порядок надання компенсації споживачам за їх недотримання, \nзатверджені постановою НКРЕКП від 21 вересня 2017 року  № 1156 (у редакції постанови НКРЕКП від 10 листопада 2022 року № 1415)."]
[]
[null,null,"Керівник  (власник) суб'єкта господарювання",null,null,null,"ДАЦЕНКО Наталія Володимирівна"]
[null,null,null,null,null,null,"(П. І. Б.)"]
[]
[null,null,"Виконавець",null,null,null,"ДАЦЕНКО Наталія Володимирівна"]
[null,null,null,null,null,null,"(П. І. Б.)"]
[]
[null,null,"Телефон:",80688160686,null,"Факс:",null,null,"Електронна пошта:",null,"office@energy-trend.com.ua"]

{"sheet":"Holidays","index":4,"n_rows":8,"n_cols":2,"rows_kept":8,"cut":false,"hidden":false,"merged":[]}
[]
["При розрахунку тривалості надання послуг у робочих днях враховані лише офіційні вихідні дні (субота, неділя + державні свята)."]
["Не враховані перенесення робочих/вихідних днів, затверджених рішеннями Кабінету Міністрів України."]
[]
[]
[null,"Для точного підрахунку тривалості надання послуг у робочих днях введіть додаткові вихідні/робочі дні у форматі дд.мм.рррр"]
[null,"(відповідно до рекомендацій Кабінету Міністрів України щодо перенесення робочих днів для режиму роботи з п’ятиденним робочим тижнем із двома вихідними днями в суботу та неділю)"]
["Додаткові вихідні дні","Додаткові робочі дні"]

{"sheet":"Data","index":5,"n_rows":29,"n_cols":38,"rows_kept":29,"cut":false,"hidden":true,"merged":[[9,7,9,11],[6,7,6,11],[7,7,7,11],[8,7,8,11],[0,7,0,11],[1,7,1,11],[2,7,2,11],[3,7,3,11],[4,7,4,11],[5,7,5,11]]}
["S1","Надання письмової форми договору постачання природного газу, підписаного уповноваженою особою постачальника, на вимогу побутового споживача","10 роб. днів",null,"01.01.",null,"Пп. 1","Надання письмової форми договору постачання природного газу, підписаного уповноваженою особою постачальника, на вимогу побутового споживача",null,null,null,null,"10 роб. днів","урахування в рахунку споживача за спожитий природний газ",null,null,null,null,null,null,null,null,null,null,null,null,null,null,null,null,null,null,null,"",""]
["S2","Надання повідомлення про намір змінити умови договору постачання природного газу для непобутових споживачів","не пізніше ніж за 30 днів до дати змін",null,"07.01.",null,"Пп. 2","Надання повідомлення про намір змінити умови договору постачання природного газу для непобутових споживачів",null,null,null,null,"не пізніше ніж за 30 днів до дати змін","перерахування коштів за банківськими реквізитами"]
["S3","Повернення переплати вартості природного газу на поточний рахунок побутового споживача, у тому числі повернення переплати попередніми постачальниками","5 роб. днів",null,"08.03.",null,"Пп. 3","Повернення переплати вартості природного газу на поточний рахунок побутового споживача, у тому числі повернення переплати попередніми постачальниками",null,null,null,null,"5 роб. днів"]
["S4","Надання повідомлення побутовому споживачу про коригування персоніфікованих даних споживача, що зазначені у договорі постачання природного газу","10 роб. днів",null,"01.05.",null,"Пп. 4","Надання повідомлення побутовому споживачу про коригування персоніфікованих даних споживача, що зазначені у договорі постачання природного газу",null,null,null,null,"10 роб. днів",null,null,null,null,null,null,null,null,null,null,null,null,null,null,null,null,null,null,"1 квартал",2023,"січень","01"]
["S5","Надання на вимогу побутового споживача даних, які підтверджують згоду споживача змінити умови постачання за договором постачання природного газу шляхом обрання іншої комерційної пропозиції постачальника (п. 10 розділу ІІІ*)","15 днів",null,"09.05.",null,"Пп. 5","Надання на вимогу побутового споживача даних, які підтверджують згоду споживача змінити умови постачання за договором постачання природного газу шляхом обрання іншої комерційної пропозиції постачальника",null,null,null,null,"15 днів",null,null,null,null,null,null,null,null,null,null,null,null,null,null,null,null,null,null,"1 квартал",2024,"лютий","02",null,"С","Вс"]
["S6","Надання повідомлення побутовому споживачу про відмову в наданні іншої комерційної пропозиції","10 роб. днів",null,"28.06.",null,"Пп. 6","Надання повідомлення побутовому споживачу про відмову в наданні іншої комерційної пропозиції",null,null,null,null,"10 роб. днів",null,null,null,null,null,null,null,null,null,null,null,null,null,null,null,null,null,null,"1 квартал",2025,"березень","03",null,"П","ФМ"]
["S7","Усунення порушення або надання обґрунтованої відмови побутовому споживачу у випадку отримання постачальником претензії від побутового споживача","5 роб. днів",null,"28.07.",null,"Пп. 7","Усунення порушення або надання обґрунтованої відмови побутовому споживачу у випадку отримання постачальником претензії від побутового споживача про порушення постачальником умов Правил постачання природного газу та договору постачання природного газу",null,null,null,null,"5 роб. днів",null,null,null,null,null,null,null,null,null,null,null,null,null,null,null,null,null,null,"2 квартал",2026,"квітень","04",null,"З","Вл"]
["S8","Розгляд акта-претензії споживача про відшкодування збитків","20 роб. днів",null,"24.08.",null,"Пп. 8","Розгляд акта-претензії споживача про відшкодування збитків",null,null,null,null,"20 роб. днів",null,null,null,null,null,null,null,null,null,null,null,null,null,null,null,null,null,null,"2 квартал",2027,"травень","05"]
["S9.1","Розгляд письмового звернення щодо правильності рахунка/нарахувань за спожитий природний газ","30 днів",null,"14.10.",null,"Пп. 9 абз. 2","Розгляд письмового звернення щодо правильності рахунка/нарахувань за спожитий природний газ",null,null,null,null,"30 днів",null,null,null,null,null,null,null,null,null,null,null,null,null,null,null,null,null,null,"2 квартал",2028,"червень","06"]
["S9.2","Розгляд письмового звернення щодо правильності рахунка/нарахувань за спожитий природний газ","5 роб. днів",null,"25.12.",null,"Пп. 9 абз. 3","Розгляд письмового звернення щодо правильності рахунка/нарахувань за спожитий природний газ",null,null,null,null,"5 роб. днів",null,null,null,null,null,null,null,null,null,null,null,null,null,null,null,null,null,null,"3 квартал",2029,"липень","07"]
[null,null,null,null,"16.04.2023",null,null,null,null,null,null,null,null,null,null,null,null,null,null,null,null,null,null,null,null,null,null,null,null,null,null,"3 квартал",null,"серпень","08"]
[null,null,null,null,"05.05.2024",null,null,null,null,null,null,null,null,null,null,null,null,null,null,null,null,null,null,null,null,null,null,null,null,null,null,"3 квартал",null,"вересень","09"]
[null,null,null,null,"20.04.2025",null,null,null,null,null,null,null,null,null,null,null,null,null,null,null,null,null,null,null,null,null,null,null,null,null,null,"4 квартал",null,"жовтень",10]
[null,null,null,null,"12.04.2026",null,null,null,null,null,null,null,null,null,null,null,null,null,null,null,null,null,null,null,null,null,null,null,null,null,null,"4 квартал",null,"листопад",11]
[null,null,null,null,"02.05.2027",null,null,null,null,null,null,null,null,null,null,null,null,null,null,null,null,null,null,null,null,null,null,null,null,null,null,"4 квартал",null,"грудень",12]
[null,null,null,null,"16.04.2028"]
[null,null,null,null,"08.04.2029"]
[null,null,null,null,"04.06.2023",null,null,null,null,null,null,null,null,null,null,null,null,null,null,null,null,null,null,null,null,null,null,null,null,null,null,null,"1 квартал","1 квартал"]
[null,null,null,null,"24.06.2024",null,null,null,null,null,null,null,null,null,null,null,null,null,null,null,null,null,null,null,null,null,null,null,null,null,null,null,"2 квартал","2 квартал"]
[null,null,null,null,"08.06.2025",null,null,null,null,null,null,null,null,null,null,null,null,null,null,null,null,null,null,null,null,null,null,null,null,null,null,null,"3 квартал","3 квартал"]
[null,null,null,null,"31.05.2026",null,null,null,null,null,null,null,null,null,null,null,null,null,null,null,null,null,null,null,null,null,null,null,null,null,null,null,"4 квартал","4 квартал"]
[null,null,null,null,"20.06.2027",null,null,null,null,null,null,null,null,null,null,null,null,null,null,null,null,null,null,null,null,null,null,null,null,null,null,null,"травень"]
[null,null,null,null,"04.06.2028",null,null,null,null,null,null,null,null,null,null,null,null,null,null,null,null,null,null,null,null,null,null,null,null,null,null,null,"червень"]
[null,null,null,null,"27.05.2029",null,null,null,null,null,null,null,null,null,null,null,null,null,null,null,null,null,null,null,null,null,null,null,null,null,null,null,"липень"]
[null,null,null,null,null,null,null,null,null,null,null,null,null,null,null,null,null,null,null,null,null,null,null,null,null,null,null,null,null,null,null,null,"серпень"]
[null,null,null,null,null,null,null,null,null,null,null,null,null,null,null,null,null,null,null,null,null,null,null,null,null,null,null,null,null,null,null,null,"вересень"]
[null,null,null,null,null,null,null,null,null,null,null,null,null,null,null,null,null,null,null,null,null,null,null,null,null,null,null,null,null,null,null,null,"жовтень"]
[null,null,null,null,null,null,null,null,null,null,null,null,null,null,null,null,null,null,null,null,null,null,null,null,null,null,null,null,null,null,null,null,"листопад"]
[null,null,null,null,null,null,null,null,null,null,null,null,null,null,null,null,null,null,null,null,null,null,null,null,null,null,null,null,null,null,null,null,"грудень"]